bitfinex/quotes_ETHUSD_20241024
["timestamp","ask_amount","ask_price","bid_price","bid_amount"]
[1729762930389,0.44815187,2520.3,2520.0,1.42983985]
[1729762930587,0.07742026,2520.3,2520.0,1.42983985]
[1729762930792,0.07742026,2520.3,2520.0,5.39807985]
[1729762931522,6.14270389,2520.4,2520.0,5.39807985]
[1729762931822,0.37071599,2520.3,2520.0,0.12697464]
[1729762932025,0.07742026,2520.2,2520.0,0.12697464]
[1729762932398,0.07742026,2520.3,2520.0,0.12697464]
[1729762932606,5.36529389,2520.3,2520.0,0.12697464]
[1729762933018,4.3388096,2520.2,2520.0,0.12697464]
[1729762933200,3.96794,2520.2,2519.8,8.03854]
[1729762933403,0.07742026,2520.1,2519.8,9.44978536]
[1729762934534,5.36563389,2520.1,2519.8,5.48124536]
[1729762934716,0.07742026,2520.1,2519.8,4.07]
[1729762935028,4.04552026,2520.1,2519.8,4.07]
[1729762935532,4.04552026,2520.1,2519.9,0.12705592]
[1729762936509,5.36546389,2520.2,2519.9,0.12705592]
[1729762936705,0.37095391,2520.1,2519.9,0.12705592]
[1729762936911,4.74514,2520.4,2519.9,4.09538497]
[1729762937104,0.37086581,2520.3,2519.9,5.12245283]
[1729762937447,0.37086581,2520.2,2519.9,5.12245283]
[1729762937733,6.14265389,2520.4,2519.9,5.12245283]
[1729762937907,0.37094533,2520.3,2519.9,5.12245283]
[1729762938106,0.44836559,2520.2,2519.9,5.12245283]
[1729762938328,0.37094533,2520.1,2519.9,5.12245283]
[1729762938536,1.39751389,2520.4,2520.1,4.75636]
[1729762938832,0.37115827,2520.3,2520.2,0.12568526]
[1729762939219,0.96489192,2520.3,2520.2,0.12568526]
[1729762941140,0.96467506,2520.3,2520.2,0.12568526]
[1729762942011,0.37102887,2520.3,2520.2,4.09361526]
[1729762942410,0.37102887,2520.3,2520.2,4.97862979]
[1729762944199,5.28701363,2520.9,2520.5,3.9674]
[1729762944441,1.04184924,2520.8,2520.6,3.96724]
[1729762944649,0.37093422,2520.7,2520.6,4.87341783]
[1729762944833,0.37094968,2520.7,2520.6,5.89744664]
[1729762945404,0.07742026,2520.9,2520.6,1.93020664]
[1729762945610,0.07742026,2520.9,2520.6,0.90617783]
[1729762945838,0.37079155,2520.8,2520.6,0.90617783]
[1729762946026,1.39751389,2520.9,2520.6,0.90617783]
[1729762946027,0.07742026,2520.9,2520.6,4.87340783]
[1729762949152,1.39751389,2521.0,2520.6,4.87340783]
[1729762949361,1.32009363,2520.7,2520.6,0.12537783]
[1729762949521,5.36466389,2520.7,2520.6,0.12537783]
[1729762949722,5.36466389,2520.7,2520.3,3.96766]
[1729762950023,1.32009363,2520.6,2520.4,0.12]
[1729762950426,1.32009363,2520.6,2520.5,0.12518954]
[1729762950629,5.36466389,2520.7,2520.5,0.12518954]
[1729762951222,5.28739363,2520.6,2520.2,4.79301]
[1729762951434,5.36481389,2520.6,2520.2,4.79301]
[1729762951746,4.04472026,2520.6,2520.2,4.79301]
[1729762952260,0.07742026,2520.6,2520.3,3.96776]
[1729762952549,4.04459026,2520.7,2520.3,3.96776]
[1729762953446,0.07742026,2520.7,2520.3,3.96776]
[1729762953615,0.07742026,2520.7,2520.3,3.96769]
[1729762956052,5.36468389,2520.7,2520.3,3.96769]
[1729762957525,4.04459026,2520.7,2520.3,3.96769]
[1729762958364,5.36468389,2520.7,2520.3,3.96769]
[1729762959024,4.04459026,2520.7,2520.3,3.96769]
[1729762959866,6.10223363,2520.9,2520.5,0.8093]
[1729762960028,0.07742026,2520.8,2520.5,0.8093]
[1729762960553,0.07742026,2520.8,2520.5,4.77674]
[1729762960933,0.8153,2520.9,2520.5,4.77668]
[1729762961150,6.10230363,2520.9,2520.5,4.77668]
[1729762961855,0.8153,2520.9,2520.5,4.77668]
[1729762962306,2.13539363,2520.9,2520.6,3.96728]
[1729762962466,0.07742026,2521.0,2520.7,3.96707]
[1729762962627,1.39751389,2521.0,2520.6,3.96728]
[1729762963046,5.36419389,2521.0,2520.6,3.96728]
[1729762963333,1.39751389,2521.0,2520.6,4.94226424]
[1729762963729,1.32009363,2521.3,2520.9,3.96676]
[1729762963930,0.44791702,2521.2,2520.9,3.96676]
[1729762964149,1.39751389,2521.2,2520.8,4.75459]
[1729762965030,0.07742026,2521.2,2520.8,4.75459]
[1729762965370,1.39751389,2521.3,2520.9,4.442189]
[1729762965674,1.39751389,2521.3,2520.9,4.56262714]
[1729762966059,2.14409363,2521.4,2521.0,3.9666]
[1729762966373,2.22151389,2521.4,2521.0,4.08695693]
[1729762966748,2.22151389,2521.4,2521.1,3.96643]
[1729762967284,2.14409363,2521.4,2521.2,0.12019451]
[1729762967566,1.32009363,2521.3,2521.2,0.12019451]
[1729762967940,1.32009363,2521.3,2521.0,3.9666]
[1729762968147,1.32009363,2521.3,2521.2,0.12019451]
[1729762968346,2.14409363,2521.4,2521.1,4.08678572]
[1729762968578,2.14409363,2521.4,2521.2,0.12019451]
[1729762969360,1.32009363,2521.4,2521.2,0.12019451]
[1729762969555,0.7954,2521.6,2521.3,3.96616]
[1729762969752,0.07742026,2521.7,2521.4,0.54064481]
[1729762969955,1.39751389,2521.7,2521.4,0.66036651]
[1729762970259,1.39751389,2521.7,2521.4,0.1197217]
[1729762970470,5.36309389,2521.7,2521.4,0.1197217]
[1729762970672,1.39751389,2521.7,2521.4,0.1197217]
[1729762971584,1.32009363,2521.6,2521.4,0.1197217]
[1729762971949,1.32009363,2521.6,2521.2,7.93248]
[1729762972160,1.32009363,2521.6,2521.5,0.11942967]
[1729762972356,5.28583363,2521.6,2521.2,3.9662]
[1729762972577,4.79214,2521.6,2521.5,0.11942967]
[1729762972783,3.96593,2521.5,2521.1,4.73009]
[1729762972980,1.32009363,2521.3,2521.1,0.869692]
[1729762973194,3.96628,2521.3,2520.9,4.77702]
[1729762973346,3.96628,2521.3,2521.0,0.11]
[1729762973347,0.7841,2521.2,2521.0,0.11]
[1729762973791,0.7841,2521.2,2520.9,4.77702]
[1729762974361,2.10419363,2521.2,2520.7,8.80704]
[1729762974561,1.32009363,2521.0,2520.7,4.950704]
[1729762974787,0.07742026,2521.1,2520.7,4.950704]
[1729762974788,5.36408389,2521.1,2520.7,4.950704]
[1729762975090,1.32009363,2521.0,2520.7,4.950704]
[1729762975273,5.28681363,2521.0,2520.7,4.950704]
[1729762975475,5.28694363,2520.9,2520.7,4.07]
[1729762976284,6.15732389,2520.8,2520.3,4.71804]
[1729762976491,1.32009363,2520.7,2520.3,4.71804]
[1729762976662,1.39751389,2520.6,2520.2,3.96782]
[1729762976862,1.32009363,2520.5,2520.2,4.83926]
[1729762977076,0.07742026,2520.6,2520.2,4.83926]
[1729762977316,1.39751389,2520.6,2520.3,3.96777]
[1729762977886,3.96723,2520.7,2520.3,7.93544]
[1729762977887,1.39751389,2520.7,2520.3,7.93544]
[1729762978086,1.39751389,2520.7,2520.3,9.02599736]
[1729762978258,0.07742026,2520.7,2520.3,9.02599736]
[1729762978458,0.07742026,2520.7,2520.3,5.05822736]
[1729762978659,0.07742026,2520.7,2520.3,9.02592736]
[1729762979592,4.04460026,2520.7,2520.3,5.05822736]
[1729762979893,4.04460026,2520.7,2520.3,3.96767]
[1729762980454,4.04460026,2520.7,2520.4,0.12014738]
[1729762980455,0.07742026,2520.7,2520.4,0.12014738]
[1729762981502,0.07742026,2520.7,2520.4,4.08770738]
[1729762982400,4.04465026,2520.7,2520.4,0.12014738]
[1729762982766,4.04465026,2520.7,2520.2,3.96783]
[1729762982974,4.04465026,2520.7,2520.5,0.12006614]
[1729762983178,4.04465026,2520.7,2520.2,3.96783]
[1729762983378,4.04465026,2520.7,2520.6,0.12027776]
[1729762983869,4.04465026,2520.7,2520.3,3.96776]
[1729762984104,4.04465026,2520.7,2520.6,0.12027776]
[1729762984262,4.04465026,2520.7,2520.3,3.96776]
[1729762984466,4.04465026,2520.7,2520.6,0.12027776]
[1729762984665,4.04465026,2520.7,2520.3,3.96776]
[1729762985003,4.04465026,2520.7,2520.6,0.12027776]
[1729762985166,4.04465026,2520.7,2520.3,3.96776]
[1729762985366,4.04465026,2520.7,2520.6,0.12027776]
[1729762985595,4.04465026,2520.7,2520.3,3.96776]
[1729762985797,4.04465026,2520.7,2520.6,0.12027776]
[1729762985960,4.04465026,2520.7,2520.3,3.96776]
[1729762986160,4.04465026,2520.7,2520.6,0.12027776]
[1729762986363,4.04465026,2520.7,2520.3,3.96776]
[1729762986610,0.07742026,2520.7,2520.6,0.12027776]
[1729762986766,0.07742026,2520.7,2520.3,3.96768]
[1729762987284,4.04459026,2520.7,2520.4,0.12044025]
[1729762991411,0.07742026,2520.7,2520.4,0.12044025]
[1729762997092,0.07742026,2520.7,2520.0,3.96824]
[1729762997284,0.07742026,2520.7,2520.5,0.12038827]
[1729762997485,0.07742026,2520.7,2520.4,4.7929]
[1729762997780,3.96685,2520.9,2520.6,0.12079897]
[1729762997980,0.07742026,2520.8,2520.5,0.12088021]
[1729762998187,0.07742026,2520.8,2520.7,0.12071773]
[1729762998690,0.07742026,2520.8,2520.4,4.79282]
[1729762998918,0.07742026,2520.8,2520.7,0.12071773]
[1729762999121,0.07742026,2520.8,2520.4,4.79282]
[1729762999414,0.07742026,2520.8,2520.7,0.12071773]
[1729762999629,0.07742026,2520.8,2520.4,4.79282]
[1729762999807,0.07742026,2520.8,2520.7,0.12071773]
[1729763000002,0.07742026,2520.8,2520.4,4.79282]
[1729763000206,0.07742026,2520.8,2520.7,0.12071773]
[1729763000406,1.39705445,2520.8,2520.4,4.79282]
[1729763000584,1.39705445,2520.8,2520.7,0.12071773]
[1729763000785,1.39705445,2520.8,2520.4,8.76037]
[1729763000786,0.07742026,2520.8,2520.5,3.96739]
[1729763001116,0.07742026,2520.8,2520.6,0.12079897]
[1729763001325,1.39705445,2520.8,2520.6,0.12079897]
[1729763004821,1.39705445,2520.8,2520.6,0.12079897]
[1729763004989,0.07742026,2520.8,2520.6,0.12079897]
[1729763005190,1.39705445,2520.8,2520.6,0.12079897]
[1729763005425,0.07742026,2520.8,2520.6,0.12079897]
[1729763009498,0.07742026,2520.8,2520.7,0.8245]
[1729763009692,4.04411026,2521.0,2520.7,1.83314433]
[1729763009926,5.36374445,2521.0,2520.7,0.94514743]
[1729763010795,7.41535838,2520.8,2520.7,0.12064743]
[1729763010994,11.47610511,2520.8,2520.7,0.12064743]
[1729763011198,4.77745,2520.0,2519.6,0.7519]
[1729763011442,1.31963419,2519.9,2519.6,0.7519]
[1729763011638,6.09708419,2520.0,2519.7,0.11321367]
[1729763014598,1.31963419,2519.9,2519.7,0.11321367]
[1729763014801,6.09708419,2520.0,2519.7,0.11321367]
[1729763015222,3.96842,2519.9,2519.7,0.11321367]
[1729763015431,6.09698419,2520.0,2519.7,0.11321367]
[1729763020873,1.31963419,2519.9,2519.7,0.11321367]
[1729763022065,1.31963419,2520.0,2519.7,0.11321367]
[1729763023234,1.31963419,2520.0,2519.7,4.08190367]
[1729763024365,1.31963419,2520.0,2519.7,0.11321367]
[1729763024569,1.39705445,2520.0,2519.7,0.11321367]
[1729763026564,5.36530445,2520.0,2519.7,0.11321367]
[1729763029185,0.07742026,2520.0,2519.7,0.11321367]
[1729763029368,1.31963419,2520.1,2519.8,3.96853]
[1729763029683,0.07742026,2520.0,2519.7,4.08186367]
[1729763029853,5.28773419,2520.1,2519.9,0.11009566]
[1729763030061,5.36515445,2520.1,2519.7,3.96865]
[1729763030260,5.36515445,2520.1,2519.8,0.11017694]
[1729763030459,1.31963419,2520.0,2519.6,4.72075]
[1729763030651,1.31963419,2520.0,2519.7,0.11025823]
[1729763031882,1.39705445,2520.1,2519.7,4.07888823]
[1729763032082,5.36517445,2520.1,2519.7,4.07888823]
[1729763032649,5.36517445,2520.1,2519.7,0.11025823]
[1729763032953,1.31963419,2520.0,2519.7,0.11025823]
[1729763033579,5.28790419,2520.0,2519.7,0.11025823]
[1729763033769,5.36532445,2520.0,2519.7,0.11025823]
[1729763034884,1.31963419,2519.9,2519.7,0.11025823]
[1729763036051,5.36533445,2520.0,2519.7,0.11025823]
[1729763036785,1.39705445,2520.0,2519.7,0.11025823]
[1729763037664,5.36536445,2520.0,2519.7,0.11025823]
[1729763038283,5.28804419,2519.9,2519.7,0.11025823]
[1729763039075,3.96841,2519.9,2519.7,0.11025823]
[1729763039385,6.19281445,2519.8,2519.7,0.11025823]
[1729763039685,6.19281445,2519.8,2519.3,0.8274]
[1729763039883,6.19281445,2519.8,2519.3,4.79666]
[1729763040093,1.31963419,2519.7,2519.4,0.10671365]
[1729763040393,1.31963419,2519.5,2519.4,0.10671365]
[1729763040687,5.36601445,2519.6,2519.1,8.867]
[1729763040873,1.31963419,2519.5,2519.4,0.10671365]
[1729763041073,1.31963419,2519.5,2519.1,8.867]
[1729763041286,5.36601445,2519.6,2519.4,0.10671365]
[1729763041487,1.31963419,2519.5,2519.1,8.867]
[1729763041795,1.39705445,2519.5,2519.1,8.867]
[1729763041974,1.39705445,2519.5,2519.2,0.10687629]
[1729763042297,1.39705445,2519.5,2519.2,4.07636629]
[1729763042863,1.39705445,2519.5,2519.2,0.10687629]
[1729763042864,1.31963419,2519.4,2519.2,0.10687629]
[1729763043206,1.39705445,2519.3,2519.2,0.10687629]
[1729763043863,0.07742026,2519.3,2519.2,0.10687629]
[1729763044061,7.44663864,2519.3,2519.2,0.10687629]
[1729763044283,0.8017,2519.2,2518.3,0.62105928]
[1729763044488,1.31963419,2518.6,2518.4,7.94133]
[1729763044661,1.31963419,2518.7,2518.4,3.97065]
[1729763045184,1.31963419,2518.5,2518.4,7.94133]
[1729763045386,1.31963419,2518.6,2518.4,7.94133]
[1729763045771,1.31963419,2518.5,2518.4,3.97065]
[1729763047503,1.31963419,2518.5,2518.2,0.7575]
[1729763047708,1.31963419,2518.3,2518.0,4.0965606]
[1729763048001,1.31963419,2518.1,2518.0,0.1252106]
[1729763048781,0.07742026,2518.2,2518.0,0.1252106]
[1729763048996,1.31963419,2518.1,2518.0,0.1252106]
[1729763050878,0.07742026,2518.3,2518.0,4.0965906]
[1729763051102,1.31963419,2518.2,2518.0,4.51611166]
[1729763051307,0.07742026,2518.5,2518.0,4.51611166]
[1729763051601,1.31963419,2518.2,2518.0,4.51611166]
[1729763051964,0.07742026,2518.5,2518.0,4.51611166]
[1729763051965,0.07742026,2518.5,2518.2,3.97096]
[1729763052300,1.31963419,2518.4,2518.2,4.79016]
[1729763052497,1.31963419,2518.4,2518.3,3.97084]
[1729763055380,1.31963419,2518.5,2518.3,3.97084]
[1729763055586,1.31963419,2518.5,2518.3,4.0802805]
[1729763056229,0.07742026,2518.4,2518.3,0.1094405]
[1729763056591,0.07742026,2518.4,2518.2,4.79016]
[1729763056793,1.39705445,2518.4,2518.3,0.1094405]
[1729763057095,1.39705445,2518.4,2518.2,4.79016]
[1729763057411,1.39705445,2518.4,2518.3,0.1094405]
[1729763057790,1.39705445,2518.4,2518.2,4.79016]
[1729763057987,1.39705445,2518.4,2518.3,0.1094405]
[1729763058191,0.07742026,2518.4,2518.3,0.1094405]
[1729763058426,4.79121,2518.8,2518.3,3.97078]
[1729763058427,1.39705445,2518.6,2518.3,3.97078]
[1729763058628,1.31963419,2518.4,2518.3,0.1094405]
[1729763059000,0.07742026,2518.7,2518.4,3.97068]
[1729763059329,1.31963419,2518.6,2518.5,0.10927774]
[1729763060408,1.31963419,2518.7,2518.5,4.07980774]
[1729763060732,1.39705445,2518.6,2518.5,0.10927774]
[1729763061388,1.39705445,2518.7,2518.5,0.10927774]
[1729763061589,1.31963419,2518.6,2518.5,0.10927774]
[1729763061795,1.31963419,2518.6,2518.4,3.97067]
[1729763062006,1.31963419,2518.6,2518.5,0.10927774]
[1729763062224,1.31963419,2518.6,2518.5,4.07988774]
[1729763062638,1.31963419,2518.7,2518.5,4.07988774]
[1729763062989,0.7686,2518.8,2518.5,0.10927774]
[1729763063193,1.31963419,2518.6,2518.5,0.10927774]
[1729763063601,1.39705445,2518.7,2518.5,0.10927774]
[1729763064016,1.39705445,2518.7,2518.4,3.97076]
[1729763064217,1.31963419,2518.7,2518.6,0.10910881]
[1729763064458,1.39705445,2518.7,2518.5,4.07976018]
[1729763064607,1.39705445,2518.7,2518.6,0.10910881]
[1729763065308,1.39705445,2518.7,2518.4,3.97075]
[1729763065543,1.39705445,2518.7,2518.6,0.10910881]
[1729763065713,1.31963419,2518.7,2518.4,7.94143]
[1729763065921,0.07742026,2518.6,2518.4,3.97068]
[1729763067322,1.31963419,2518.7,2518.4,7.94137]
[1729763067607,1.31963419,2518.7,2518.4,3.97068]
[1729763068105,1.39705445,2518.6,2518.4,3.97068]
[1729763068311,1.39705445,2518.6,2518.4,3.97069]
[1729763069038,0.07742026,2518.6,2518.4,3.97069]
[1729763069336,1.39705445,2518.7,2518.4,3.97069]
[1729763069705,1.39705445,2518.7,2518.4,3.97071]
[1729763069907,1.31963419,2518.6,2518.4,3.97071]
[1729763070111,1.31963419,2518.5,2518.4,3.97071]
[1729763070336,1.31963419,2518.6,2518.4,3.97071]
[1729763070524,1.31963419,2518.6,2518.4,4.07966636]
[1729763070921,1.31963419,2518.6,2518.4,4.07965636]
[1729763071125,1.31963419,2518.6,2518.4,8.05034636]
[1729763071321,1.39705445,2518.7,2518.4,4.07964636]
[1729763071645,0.07742026,2519.0,2518.6,0.7641]
[1729763072011,1.31963419,2518.9,2518.7,4.07893225]
[1729763072411,0.07742026,2519.0,2518.7,4.07893225]
[1729763073143,0.07742026,2519.0,2518.7,8.04913225]
[1729763073457,0.07742026,2519.0,2518.7,4.07891225]
[1729763073739,2.13483419,2518.8,2518.7,0.10871225]
[1729763073939,2.13483419,2518.8,2518.6,3.97038]
[1729763074146,2.13483419,2518.8,2518.7,0.10871225]
[1729763074452,6.10497419,2518.8,2518.7,0.10871225]
[1729763074749,6.18239445,2518.8,2518.3,3.97081]
[1729763074927,1.31963419,2518.4,2518.1,3.97115]
[1729763075129,1.31963419,2518.4,2518.2,3.97108]
[1729763077018,1.31963419,2518.3,2518.2,3.97108]
[1729763077751,2.09483419,2518.3,2518.0,4.0965206]
[1729763078046,0.07742026,2518.2,2518.0,4.0965206]
[1729763078258,1.39705445,2518.2,2518.0,4.0965206]
[1729763078848,1.39705445,2518.2,2518.1,3.97124]
[1729763079051,1.39705445,2518.2,2518.0,0.1252106]
[1729763079052,0.07742026,2518.2,2518.0,4.0966006]
[1729763079347,0.07742026,2518.2,2518.0,0.1252106]
[1729763079524,1.31963419,2518.1,2518.0,0.1252106]
[1729763079727,0.07742026,2518.2,2518.0,0.1252106]
[1729763079728,1.39705445,2518.2,2518.0,0.1252106]
[1729763080555,1.31963419,2518.1,2518.0,0.1252106]
[1729763082473,6.04107419,2518.1,2518.0,0.1252106]
[1729763083457,6.41134259,2518.1,2518.0,0.1252106]
[1729763083751,6.04107419,2518.1,2518.0,0.1252106]
[1729763084121,6.04107419,2518.1,2518.0,0.2346443]
[1729763084315,6.41145583,2518.1,2518.0,0.1252106]
[1729763084956,0.7502,2517.1,2516.8,0.62152012]
[1729763085162,1.31963419,2516.9,2516.3,0.7885]
[1729763085328,0.07742026,2517.0,2516.5,3.97377]
[1729763085657,0.07742026,2517.0,2516.7,3.97345]
[1729763085830,1.39705445,2517.0,2516.7,3.97345]
[1729763086168,1.31963419,2516.9,2516.8,0.10781947]
[1729763086367,1.31963419,2516.9,2516.7,3.97345]
[1729763086565,1.31963419,2516.9,2516.8,0.10781947]
[1729763086765,1.31963419,2516.9,2516.7,3.97345]
[1729763087068,1.31963419,2516.9,2516.8,0.10781947]
[1729763087444,1.31963419,2516.9,2516.6,3.97357]
[1729763087648,0.07742026,2516.8,2516.3,0.7885]
[1729763087857,4.73633,2517.3,2516.8,3.97322]
[1729763088037,1.31963419,2516.9,2516.5,3.97373]
[1729763088239,0.07742026,2516.8,2516.5,3.97369]
[1729763088439,0.07742026,2516.9,2516.5,3.97366]
[1729763088646,0.07742026,2516.9,2516.5,4.78606]
[1729763089148,0.07742026,2516.9,2516.5,8.75972]
[1729763089560,0.07742026,2516.9,2516.6,3.97359]
[1729763089940,4.05057026,2516.9,2516.4,3.97391]
[1729763091053,0.07742026,2516.9,2516.6,3.97357]
[1729763092949,0.07742026,2516.9,2516.6,3.97361]
[1729763093150,0.07742026,2517.0,2516.7,3.97337]
[1729763093472,0.07742026,2517.2,2516.8,7.94636]
[1729763093638,0.07742026,2517.2,2516.9,3.97313]
[1729763094175,0.07742026,2517.2,2517.0,3.97296]
[1729763094352,0.07742026,2517.3,2517.0,3.97296]
[1729763094547,0.07742026,2517.4,2517.0,3.97289]
[1729763095086,3.97258,2517.3,2516.8,3.97316]
[1729763095275,0.7809,2517.1,2516.8,3.97316]
[1729763096288,0.7809,2517.1,2516.6,8.70188]
[1729763096453,0.7809,2517.1,2516.9,0.10874881]
[1729763096653,0.7809,2517.1,2516.7,3.97342]
[1729763096854,0.7809,2517.1,2517.0,0.10866734]
[1729763097343,3.97308,2517.0,2516.5,3.97376]
[1729763097548,0.07742026,2516.9,2516.5,3.97376]
[1729763097853,4.05056026,2516.9,2516.4,7.94766]
[1729763098275,4.05056026,2516.9,2516.4,3.97381]
[1729763098674,8.02383026,2516.9,2516.4,3.97381]
[1729763098899,0.83422026,2516.8,2516.4,3.97381]
[1729763099185,3.97361,2516.6,2516.0,3.97447]
[1729763099383,4.73079,2516.4,2516.0,3.97447]
[1729763099691,0.07742026,2516.3,2516.0,3.97447]
[1729763100452,0.07742026,2516.3,2516.1,0.10940083]
[1729763100895,4.05160026,2516.3,2516.1,0.10940083]
[1729763101195,3.97427,2516.2,2515.7,3.97498]
[1729763101395,0.07742026,2516.1,2515.8,3.97477]
[1729763102510,0.7568,2516.4,2516.0,3.97448]
[1729763102659,0.07742026,2516.3,2516.1,3.97438]
[1729763103095,0.7568,2516.4,2516.1,3.97438]
[1729763103297,0.07742026,2516.3,2516.1,3.97439]
[1729763103510,0.07742026,2516.3,2516.0,7.949]
[1729763103707,0.07742026,2516.3,2516.0,3.97445]
[1729763104390,0.07742026,2516.3,2516.1,3.97435]
[1729763104765,0.07742026,2516.3,2515.8,3.97477]
[1729763105099,0.07742026,2516.3,2516.0,3.97456]
[1729763105298,0.07742026,2516.3,2515.8,7.94952]
[1729763105590,4.05152026,2516.3,2515.9,3.97471]
[1729763105796,0.07742026,2516.3,2516.0,3.97449]
[1729763106173,0.07742026,2516.3,2515.7,7.95006]
[1729763106382,4.05159026,2516.3,2515.8,3.97478]
[1729763106583,0.07742026,2516.3,2515.9,3.97464]
[1729763107774,4.05153026,2516.3,2515.9,3.97464]
[1729763108175,0.8312,2516.2,2515.8,3.9748]
[1729763108500,0.07742026,2516.1,2515.9,3.97469]
[1729763108807,0.07742026,2516.0,2515.6,4.74067]
[1729763109005,0.07742026,2516.1,2515.8,3.97486]
[1729763109204,0.07742026,2516.1,2515.9,3.97469]
[1729763109412,0.07742026,2516.1,2515.6,0.7656]
[1729763109413,0.07742026,2516.3,2515.7,3.97503]
[1729763109709,0.804,2516.4,2516.1,3.97432]
[1729763110072,0.07742026,2516.6,2516.3,3.97408]
[1729763110273,0.07742026,2516.6,2516.4,3.9739]
[1729763110473,0.07742026,2516.6,2516.1,3.97427]
[1729763110474,4.05108026,2516.6,2516.1,3.97427]
[1729763110699,4.05108026,2516.6,2516.2,3.97424]
[1729763111319,3.97391,2516.5,2516.0,4.79339]
[1729763111500,4.05137026,2516.4,2516.0,0.8189]
[1729763111822,4.78508,2516.3,2515.7,3.97492]
[1729763112114,4.79547,2516.1,2515.6,3.97518]
[1729763112275,0.07742026,2516.0,2515.6,3.97518]
[1729763112475,0.07742026,2516.0,2515.5,0.1252106]
[1729763112984,0.821,2516.1,2515.5,0.1252106]
[1729763112985,0.89842026,2516.1,2515.8,3.97487]
[1729763113307,0.821,2516.1,2515.7,3.97502]
[1729763113521,0.821,2516.1,2515.8,3.97476]
[1729763113680,0.07742026,2516.0,2515.8,3.97476]
[1729763113876,0.07742026,2516.0,2515.7,3.97502]
[1729763114590,0.07742026,2516.0,2515.6,3.97509]
[1729763114980,4.05202026,2516.0,2515.6,3.97509]
[1729763115179,3.97472,2515.9,2515.5,4.1004806]
[1729763115392,0.07742026,2515.8,2515.7,0.1106625]
[1729763115594,0.07742026,2515.9,2515.5,4.1004806]
[1729763115795,0.07742026,2515.9,2515.7,0.1106976]
[1729763115988,0.07742026,2515.9,2515.6,0.11077915]
[1729763116218,0.07742026,2515.9,2515.5,4.1004806]
[1729763116382,0.07742026,2515.9,2515.7,0.1106976]
[1729763116584,4.05216026,2515.9,2515.5,4.1004806]
[1729763116784,4.05216026,2515.9,2515.8,0.11082663]
[1729763117015,4.05216026,2515.9,2515.5,0.1252106]
[1729763117016,3.97507,2515.7,2515.5,0.1252106]
[1729763117218,4.05261026,2515.6,2515.5,0.1252106]
[1729763118321,4.83071026,2515.6,2515.5,0.1252106]
[1729763119527,0.85552026,2515.6,2515.5,0.1252106]
[1729763119819,3.97374,2516.6,2515.5,0.1252106]
[1729763119820,0.07742026,2515.9,2515.7,3.97493]
[1729763120065,0.07742026,2516.1,2515.7,3.97493]
[1729763121383,4.05185026,2516.1,2515.7,3.97493]
[1729763121878,0.07742026,2516.1,2515.7,3.97493]
[1729763122077,0.07742026,2516.1,2515.7,3.97492]
[1729763122510,0.07742026,2516.1,2515.8,3.97484]
[1729763123321,0.07742026,2516.1,2515.7,4.52502]
[1729763123693,0.07742026,2516.3,2515.9,0.55]
[1729763123910,4.05163026,2516.3,2515.9,0.55]
[1729763124499,0.07742026,2516.3,2515.9,0.55]
[1729763124694,0.07742026,2516.3,2515.9,4.52466]
[1729763124928,0.07742026,2516.3,2516.0,3.97454]
[1729763125716,0.07742026,2516.3,2515.9,4.52471]
[1729763125916,0.07742026,2516.3,2516.0,3.97455]
[1729763126110,0.7721,2516.6,2516.1,0.55]
[1729763126330,0.84952026,2516.6,2516.1,4.52437]
[1729763126504,0.07742026,2516.6,2516.1,4.52437]
[1729763126699,0.07742026,2516.6,2516.2,3.97424]
[1729763126922,0.07742026,2516.6,2516.2,3.97414]
[1729763127400,0.88162026,2516.8,2516.4,3.9738]
[1729763127620,0.07742026,2516.8,2516.5,3.97376]
[1729763127817,0.07742026,2516.8,2516.4,0.8061]
[1729763128059,0.07742026,2516.8,2516.5,3.9737]
[1729763128358,0.07742026,2516.9,2516.7,3.97345]
[1729763128529,4.7935,2517.3,2516.6,0.55]
[1729763128530,0.07742026,2517.2,2516.9,3.97314]
[1729763128717,0.07742026,2517.2,2517.1,3.97282]
[1729763128917,0.07742026,2517.9,2517.3,0.55]
[1729763129114,0.8209,2518.1,2517.5,1.3149]
[1729763129115,0.89832026,2518.1,2517.5,1.3149]
[1729763129355,0.07742026,2518.1,2517.8,3.9716]
[1729763129724,0.07742026,2518.2,2517.9,3.97144]
[1729763129921,0.07742026,2518.2,2518.0,3.97125]
[1729763130157,0.07742026,2518.6,2518.1,4.52124]
[1729763130320,0.07742026,2518.6,2518.1,0.55]
[1729763130321,4.04798026,2518.6,2518.1,0.55]
[1729763130522,3.97072,2518.5,2518.2,0.10891227]
[1729763130754,0.07742026,2518.4,2518.2,0.10891227]
[1729763130960,0.07742026,2518.3,2518.2,0.10891227]
[1729763131256,0.07742026,2518.3,2517.9,3.97145]
[1729763131257,3.8150844,2518.3,2517.4,0.761]
[1729763131460,0.85702026,2518.3,2518.2,0.10781918]
[1729763131668,0.07742026,2518.3,2518.1,3.97124]
[1729763131852,0.07742026,2518.5,2518.3,3.97093]
[1729763132052,0.8207,2518.8,2518.3,3.97093]
[1729763132053,0.07742026,2518.7,2518.3,3.97093]
[1729763132227,0.07742026,2518.7,2518.4,0.10764472]
[1729763132734,0.07742026,2518.7,2518.4,3.97064]
[1729763133041,0.07742026,2518.7,2518.5,0.10756335]
[1729763133424,4.04745026,2518.9,2518.5,0.10756335]
[1729763133830,0.01,2519.3,2518.5,0.10756335]
[1729763133831,0.7978,2519.3,2518.6,3.97032]
[1729763134040,3.96916,2519.5,2519.0,3.96978]
[1729763134352,3.96945,2519.3,2519.0,0.55]
[1729763134664,3.96945,2519.3,2518.9,0.8234]
[1729763134665,4.04694026,2519.2,2518.9,0.8234]
[1729763134867,4.04694026,2519.2,2519.1,0.10680659]
[1729763135103,4.04694026,2519.2,2518.9,0.8234]
[1729763135272,0.07742026,2519.2,2519.1,0.10680659]
[1729763135432,0.07742026,2519.2,2518.9,0.8234]
[1729763135762,0.07742026,2519.2,2519.1,0.10680659]
[1729763136074,3.96913,2519.5,2519.1,0.10665479]
[1729763136227,0.07742026,2519.4,2518.9,4.79336]
[1729763136432,4.04675026,2519.4,2518.9,0.8234]
[1729763137142,0.07742026,2519.4,2518.9,4.79336]
[1729763137342,0.07742026,2519.4,2518.9,0.8234]
[1729763137611,0.07742026,2519.4,2519.0,4.51981]
[1729763137749,0.07742026,2519.4,2519.2,3.96947]
[1729763137948,0.07742026,2519.5,2519.2,3.96947]
[1729763138175,0.07742026,2519.5,2519.0,4.51981]
[1729763138358,3.96924,2519.4,2519.0,0.55]
[1729763138672,0.07742026,2519.3,2519.0,0.55]